[Event "*** Titled Tuesday Blitz"]
[Site "Chess.com"]
[Date "2020.02.04"]
[Round "8"]
[White "Abund"]
[Black "DonPreuss"]
[Result "1-0"]
[WhiteElo "2744"]
[BlackElo "2207"]
[TimeControl "180+2"]
[EndTime "10:56:25 PST"]
[Termination "Abund won on time"]

1. Nf3 {[%clk 0:03:01.9]} 1... Nc6 {[%clk 0:02:58.1]} 2. d4 {[%clk 0:03:01.5]}
2... d6 {[%clk 0:02:59.1]} 3. d5 {[%clk 0:02:57.9]} 3... Ne5 {[%clk 0:02:59.7]}
4. Nxe5 {[%clk 0:02:57]} 4... dxe5 {[%clk 0:03:01.6]} 5. e4 {[%clk 0:02:56.8]}
5... g6 {[%clk 0:02:58.2]} 6. Bb5+ {[%clk 0:02:48.2]} 6... Bd7 {[%clk
0:02:58.5]} 7. Qe2 {[%clk 0:02:45.9]} 7... Bg7 {[%clk 0:02:57.8]} 8. O-O {[%clk
0:02:42.7]} 8... Nf6 {[%clk 0:02:36.4]} 9. c4 {[%clk 0:02:13.5]} 9... O-O {[%clk
0:02:36.5]} 10. Bxd7 {[%clk 0:02:12.9]} 10... Nxd7 {[%clk 0:02:23.4]} 11. Nc3
{[%clk 0:02:09]} 11... f5 {[%clk 0:02:16.6]} 12. f3 {[%clk 0:01:51.3]} 12... f4
{[%clk 0:02:14.3]} 13. g3 {[%clk 0:01:46.6]} 13... g5 {[%clk 0:02:12.3]} 14. g4
{[%clk 0:01:38.5]} 14... h5 {[%clk 0:02:08.2]} 15. h3 {[%clk 0:01:34]} 15...
hxg4 {[%clk 0:01:43.4]} 16. hxg4 {[%clk 0:01:33.1]} 16... c6 {[%clk 0:01:44.9]}
17. Kg2 {[%clk 0:01:28.5]} 17... Kf7 {[%clk 0:01:40.6]} 18. Bd2 {[%clk
0:01:23.4]} 18... Rh8 {[%clk 0:01:40.6]} 19. Rh1 {[%clk 0:01:23.5]} 19... Qb6
{[%clk 0:01:41.7]} 20. Na4 {[%clk 0:01:12]} 20... Qa6 {[%clk 0:01:31.4]} 21. b3
{[%clk 0:01:11]} 21... b5 {[%clk 0:01:00.1]} 22. dxc6 {[%clk 0:01:00.9]} 22...
bxa4 {[%clk 0:01:01.3]} 23. cxd7 {[%clk 0:01:01.1]} 23... Rhd8 {[%clk
0:00:52.1]} 24. Qd3 {[%clk 0:00:48.8]} 24... e6 {[%clk 0:00:39.1]} 25. Rad1
{[%clk 0:00:38.5]} 25... Qc6 {[%clk 0:00:37.4]} 26. Bc3 {[%clk 0:00:37.1]} 26...
axb3 {[%clk 0:00:37.2]} 27. axb3 {[%clk 0:00:37.2]} 27... Rab8 {[%clk
0:00:37.4]} 28. Rh7 {[%clk 0:00:34.4]} 28... Kg8 {[%clk 0:00:35.1]} 29. Rxg7+
{[%clk 0:00:34.4]} 29... Kxg7 {[%clk 0:00:34.3]} 30. Bxe5+ {[%clk 0:00:36.1]}
30... Kf7 {[%clk 0:00:16.8]} 31. Bxb8 {[%clk 0:00:35.7]} 31... Qb6 {[%clk
0:00:11.5]} 32. Be5 {[%clk 0:00:32.1]} 32... Qa6 {[%clk 0:00:10.6]} 33. Bb2
{[%clk 0:00:27.1]} 33... Qa2 {[%clk 0:00:10.3]} 34. Qd4 {[%clk 0:00:27.3]} 1-0

[Event "*** Titled Tuesday Blitz"]
[Site "Chess.com"]
[Date "2020.02.04"]
[Round "8"]
[White "Colombiano07"]
[Black "RojonR"]
[Result "1-0"]
[WhiteElo "2290"]
[BlackElo "2422"]
[TimeControl "180+2"]
[EndTime "10:56:42 PST"]
[Termination "Colombiano07 won by checkmate"]

1. e4 {[%clk 0:03:01.9]} 1... e5 {[%clk 0:03:00.4]} 2. Nf3 {[%clk 0:03:02.2]}
2... Nc6 {[%clk 0:03:01.7]} 3. Bb5 {[%clk 0:03:03.2]} 3... Bc5 {[%clk
0:03:01.5]} 4. O-O {[%clk 0:03:01.5]} 4... Nf6 {[%clk 0:03:01.5]} 5. Nxe5 {[%clk
0:03:02.2]} 5... Nxe4 {[%clk 0:03:02.1]} 6. Qg4 {[%clk 0:02:43.7]} 6... Nxe5
{[%clk 0:02:59.4]} 7. Qxe4 {[%clk 0:02:40.9]} 7... Qe7 {[%clk 0:02:59.9]} 8. d4
{[%clk 0:02:32.7]} 8... Nc6 {[%clk 0:02:59.8]} 9. Qxe7+ {[%clk 0:02:28]} 9...
Bxe7 {[%clk 0:02:59.6]} 10. c3 {[%clk 0:02:28]} 10... O-O {[%clk 0:02:55.9]} 11.
Re1 {[%clk 0:02:28.7]} 11... Bf6 {[%clk 0:02:56.2]} 12. Bf4 {[%clk 0:02:28.2]}
12... d6 {[%clk 0:02:57.1]} 13. Nd2 {[%clk 0:02:28.8]} 13... g6 {[%clk
0:02:49.2]} 14. Ne4 {[%clk 0:02:26.4]} 14... Bg7 {[%clk 0:02:50]} 15. Re2 {[%clk
0:02:24.3]} 15... Bf5 {[%clk 0:02:50]} 16. Rae1 {[%clk 0:02:24]} 16... a6 {[%clk
0:02:50.7]} 17. Ba4 {[%clk 0:02:01.4]} 17... h6 {[%clk 0:02:46.5]} 18. h3 {[%clk
0:01:54.7]} 18... g5 {[%clk 0:02:47]} 19. Bc1 {[%clk 0:01:50]} 19... Kh7 {[%clk
0:02:43.4]} 20. h4 {[%clk 0:01:45.5]} 20... g4 {[%clk 0:02:41.3]} 21. Bc2 {[%clk
0:01:43.3]} 21... Kh8 {[%clk 0:02:36.6]} 22. h5 {[%clk 0:01:36.8]} 22... Bh7
{[%clk 0:02:36.3]} 23. Ng3 {[%clk 0:01:32.6]} 23... f5 {[%clk 0:02:34.6]} 24.
Bf4 {[%clk 0:01:28.1]} 24... b5 {[%clk 0:02:14.3]} 25. Re6 {[%clk 0:01:26.4]}
25... b4 {[%clk 0:02:11.6]} 26. Bxh6 {[%clk 0:01:17.1]} 26... bxc3 {[%clk
0:02:11]} 27. Bxg7+ {[%clk 0:01:15.7]} 27... Kxg7 {[%clk 0:02:09.9]} 28. h6+
{[%clk 0:01:16.9]} 28... Kh8 {[%clk 0:02:09.8]} 29. bxc3 {[%clk 0:01:17.4]}
29... Rab8 {[%clk 0:02:09.8]} 30. Nh5 {[%clk 0:01:05.2]} 30... Rb2 {[%clk
0:02:05.2]} 31. Rf6 {[%clk 0:01:05.3]} 31... Rxf6 {[%clk 0:01:49.9]} 32. Re8+
{[%clk 0:01:03.8]} 32... Bg8 {[%clk 0:01:47.3]} 33. Nxf6 {[%clk 0:01:04.4]}
33... Rb8 {[%clk 0:01:46.6]} 34. Rxb8 {[%clk 0:00:55]} 34... Nxb8 {[%clk
0:01:48.5]} 35. Nxg8 {[%clk 0:00:56]} 35... Kxg8 {[%clk 0:01:50.4]} 36. Bxf5
{[%clk 0:00:57.2]} 36... g3 {[%clk 0:01:51.6]} 37. fxg3 {[%clk 0:00:57.5]} 37...
Nc6 {[%clk 0:01:52.5]} 38. g4 {[%clk 0:00:57.9]} 38... Ne7 {[%clk 0:01:52.8]}
39. Bd3 {[%clk 0:00:58.1]} 39... Kh8 {[%clk 0:01:51.4]} 40. g5 {[%clk
0:00:58.9]} 40... Nd5 {[%clk 0:01:51.3]} 41. g6 {[%clk 0:00:59]} 41... Nxc3
{[%clk 0:01:49.9]} 42. g7+ {[%clk 0:00:59.8]} 42... Kg8 {[%clk 0:01:50.6]} 43.
Bf5 {[%clk 0:01:01.4]} 43... Ne2+ {[%clk 0:01:47.8]} 44. Kf2 {[%clk 0:00:54]}
44... Nxd4 {[%clk 0:01:49.7]} 45. Bd3 {[%clk 0:00:53.2]} 45... d5 {[%clk
0:01:48.5]} 46. Ke3 {[%clk 0:00:50.8]} 46... Ne6 {[%clk 0:01:46.2]} 47. Bf5
{[%clk 0:00:50.7]} 47... Ng5 {[%clk 0:01:10.7]} 48. Kf4 {[%clk 0:00:43.2]} 48...
Nf7 {[%clk 0:01:11.4]} 49. Be6 {[%clk 0:00:43.8]} 49... d4 {[%clk 0:01:12.3]}
50. Kf5 {[%clk 0:00:42.1]} 50... Kh7 {[%clk 0:01:10.7]} 51. Bxf7 {[%clk
0:00:41.6]} 51... Kxh6 {[%clk 0:01:10.4]} 52. g8=Q {[%clk 0:00:42.5]} 52... d3
{[%clk 0:01:12.3]} 53. Qg6# {[%clk 0:00:43]} 1-0

[Event "*** Titled Tuesday Blitz"]
[Site "Chess.com"]
[Date "2020.02.04"]
[Round "8"]
[White "malandragem"]
[Black "Bulldog167"]
[Result "1-0"]
[WhiteElo "2321"]
[BlackElo "2692"]
[TimeControl "180+2"]
[EndTime "10:56:50 PST"]
[Termination "malandragem won by checkmate"]

1. e4 {[%clk 0:03:01.9]} 1... c5 {[%clk 0:02:57]} 2. Nf3 {[%clk 0:03:02.9]} 2...
d6 {[%clk 0:02:54.7]} 3. d4 {[%clk 0:03:04.3]} 3... cxd4 {[%clk 0:02:56.6]} 4.
Nxd4 {[%clk 0:03:06.2]} 4... Nf6 {[%clk 0:02:58]} 5. Nc3 {[%clk 0:03:07]} 5...
a6 {[%clk 0:02:59.3]} 6. h3 {[%clk 0:03:07.6]} 6... e6 {[%clk 0:03:00.1]} 7. g4
{[%clk 0:03:07.6]} 7... h6 {[%clk 0:03:01.7]} 8. f4 {[%clk 0:03:02]} 8... b5
{[%clk 0:03:01.2]} 9. a3 {[%clk 0:03:02.6]} 9... Bb7 {[%clk 0:03:02.4]} 10. Bg2
{[%clk 0:02:57.7]} 10... Nbd7 {[%clk 0:03:03.5]} 11. O-O {[%clk 0:02:43.6]}
11... Qc7 {[%clk 0:03:03.8]} 12. Qe2 {[%clk 0:02:41]} 12... Be7 {[%clk
0:02:56.9]} 13. Be3 {[%clk 0:02:37.9]} 13... O-O {[%clk 0:02:52.8]} 14. h4
{[%clk 0:02:29.2]} 14... Qc4 {[%clk 0:02:43.9]} 15. Qd1 {[%clk 0:02:12.1]} 15...
Nc5 {[%clk 0:02:36]} 16. e5 {[%clk 0:02:04.9]} 16... dxe5 {[%clk 0:02:21.9]} 17.
fxe5 {[%clk 0:02:02.6]} 17... Nd5 {[%clk 0:01:56.9]} 18. Nxd5 {[%clk 0:01:53.6]}
18... Bxd5 {[%clk 0:01:58.8]} 19. Rf4 {[%clk 0:01:47.5]} 19... Bxg2 {[%clk
0:01:23.8]} 20. Nf5 {[%clk 0:01:27.4]} 20... exf5 {[%clk 0:00:24.7]} 21. Rxc4
{[%clk 0:01:20.7]} 21... bxc4 {[%clk 0:00:26.6]} 22. gxf5 {[%clk 0:00:58.2]}
22... Rfd8 {[%clk 0:00:12.5]} 23. Qg4 {[%clk 0:00:57.4]} 23... Bb7 {[%clk
0:00:12.1]} 24. Bxh6 {[%clk 0:00:40.3]} 24... Bf8 {[%clk 0:00:11.4]} 25. Rf1
{[%clk 0:00:41]} 25... Ne4 {[%clk 0:00:09.4]} 26. Bxg7 {[%clk 0:00:34.7]} 26...
Bc5+ {[%clk 0:00:10.7]} 27. Kh2 {[%clk 0:00:30.9]} 27... Rd2+ {[%clk 0:00:10.5]}
28. Kh3 {[%clk 0:00:28.3]} 28... Ng5+ {[%clk 0:00:03.9]} 29. Qxg5 {[%clk
0:00:23.9]} 29... Bg2+ {[%clk 0:00:04.9]} 30. Kg4 {[%clk 0:00:13.3]} 30... Rd4+
{[%clk 0:00:03.6]} 31. Kh5 {[%clk 0:00:10.5]} 31... f6 {[%clk 0:00:04.1]} 32.
Bxf6+ {[%clk 0:00:09.5]} 32... Kf7 {[%clk 0:00:05.7]} 33. Qg7+ {[%clk
0:00:10.7]} 33... Ke8 {[%clk 0:00:07.6]} 34. Qg6+ {[%clk 0:00:11.3]} 34... Kd7
{[%clk 0:00:09.1]} 35. Qxg2 {[%clk 0:00:12.4]} 35... Re8 {[%clk 0:00:05.8]} 36.
Qb7# {[%clk 0:00:13.3]} 1-0

[Event "*** Titled Tuesday Blitz"]
[Site "Chess.com"]
[Date "2020.02.04"]
[Round "8"]
[White "MFBerna"]
[Black "gurelediz"]
[Result "1-0"]
[WhiteElo "2342"]
[BlackElo "2493"]
[TimeControl "180+2"]
[EndTime "10:56:50 PST"]
[Termination "MFBerna won by resignation"]

1. d4 {[%clk 0:03:01.9]} 1... Nf6 {[%clk 0:02:58.9]} 2. Nf3 {[%clk 0:03:02.1]}
2... e6 {[%clk 0:02:59.2]} 3. c4 {[%clk 0:03:03.5]} 3... b6 {[%clk 0:03:00.1]}
4. g3 {[%clk 0:03:04]} 4... Bb7 {[%clk 0:03:01.6]} 5. Bg2 {[%clk 0:03:05.6]}
5... Be7 {[%clk 0:03:02.9]} 6. O-O {[%clk 0:03:07.2]} 6... O-O {[%clk
0:03:04.2]} 7. Nc3 {[%clk 0:03:08.8]} 7... c5 {[%clk 0:03:04.2]} 8. d5 {[%clk
0:03:07.8]} 8... exd5 {[%clk 0:03:04.2]} 9. cxd5 {[%clk 0:03:09]} 9... d6 {[%clk
0:03:05.3]} 10. e4 {[%clk 0:03:09.7]} 10... a6 {[%clk 0:03:05.2]} 11. a4 {[%clk
0:03:10.8]} 11... Nbd7 {[%clk 0:03:04]} 12. Nd2 {[%clk 0:03:10.5]} 12... Rb8
{[%clk 0:03:03.4]} 13. Nc4 {[%clk 0:03:08.8]} 13... Re8 {[%clk 0:03:00.8]} 14.
f4 {[%clk 0:02:59.5]} 14... Bf8 {[%clk 0:02:51.4]} 15. Kh1 {[%clk 0:02:40.2]}
15... Ba8 {[%clk 0:02:47.6]} 16. e5 {[%clk 0:02:41.4]} 16... dxe5 {[%clk
0:02:47]} 17. fxe5 {[%clk 0:02:43.3]} 17... Nxe5 {[%clk 0:02:48.2]} 18. Nxe5
{[%clk 0:02:42.5]} 18... Rxe5 {[%clk 0:02:50.1]} 19. Bf4 {[%clk 0:02:42.8]}
19... Bd6 {[%clk 0:02:51.8]} 20. Bxe5 {[%clk 0:02:36]} 20... Bxe5 {[%clk
0:02:53.7]} 21. Qd2 {[%clk 0:02:12.6]} 21... b5 {[%clk 0:02:35.9]} 22. axb5
{[%clk 0:02:13.2]} 22... axb5 {[%clk 0:02:37.8]} 23. Ra7 {[%clk 0:01:47.6]}
23... b4 {[%clk 0:02:18.2]} 24. Na4 {[%clk 0:01:46.2]} 24... Nxd5 {[%clk
0:02:05.6]} 25. Rxa8 {[%clk 0:01:43.5]} 25... Rxa8 {[%clk 0:02:03]} 26. Bxd5
{[%clk 0:01:42.5]} 26... Bd4 {[%clk 0:01:56.6]} 27. Bxf7+ {[%clk 0:01:30.9]}
27... Kh8 {[%clk 0:01:56.4]} 28. b3 {[%clk 0:01:23.2]} 28... Ra6 {[%clk
0:01:42.6]} 29. Qg2 {[%clk 0:01:17.2]} 29... g6 {[%clk 0:01:35.6]} 30. Bc4
{[%clk 0:01:17.2]} 30... Ra7 {[%clk 0:01:30.2]} 31. Qh3 {[%clk 0:01:18.2]} 31...
Qe8 {[%clk 0:01:17.6]} 32. Nb6 {[%clk 0:01:12.2]} 32... Qc6+ {[%clk 0:01:03.9]}
33. Nd5 {[%clk 0:01:12.7]} 33... Kg7 {[%clk 0:01:01.7]} 34. Qg2 {[%clk
0:01:08.9]} 34... Rd7 {[%clk 0:00:50]} 35. Qf3 {[%clk 0:01:09]} 35... Qd6 {[%clk
0:00:48.1]} 36. Nf4 {[%clk 0:01:07.5]} 36... Re7 {[%clk 0:00:31.2]} 37. Ne6+
{[%clk 0:01:07.2]} 37... Kh6 {[%clk 0:00:31.2]} 38. Qf8+ {[%clk 0:01:07.4]}
38... Kh5 {[%clk 0:00:31.8]} 39. Nf4+ {[%clk 0:01:05.5]} 39... Kg5 {[%clk
0:00:29.7]} 40. Nh3+ {[%clk 0:00:41.4]} 40... Kh5 {[%clk 0:00:21.2]} 41. Be2+
{[%clk 0:00:19.5]} 1-0

[Event "*** Titled Tuesday Blitz"]
[Site "Chess.com"]
[Date "2020.02.04"]
[Round "8"]
[White "AtabayevSaparmyrat"]
[Black "vlad_Sid"]
[Result "1/2-1/2"]
[WhiteElo "2801"]
[BlackElo "2712"]
[TimeControl "180+2"]
[EndTime "10:56:57 PST"]
[Termination "Game drawn by repetition"]

1. e4 {[%clk 0:03:00.2]} 1... c6 {[%clk 0:03:00.8]} 2. d4 {[%clk 0:03:00.9]}
2... d5 {[%clk 0:03:02.7]} 3. Nc3 {[%clk 0:03:02.4]} 3... dxe4 {[%clk
0:03:03.3]} 4. Nxe4 {[%clk 0:03:04.2]} 4... Nf6 {[%clk 0:03:04.9]} 5. Ng3 {[%clk
0:03:03.4]} 5... h5 {[%clk 0:03:04.9]} 6. h4 {[%clk 0:03:04.1]} 6... Bg4 {[%clk
0:03:04.7]} 7. Be2 {[%clk 0:02:55.8]} 7... e6 {[%clk 0:03:01.4]} 8. Bg5 {[%clk
0:02:49.7]} 8... Nbd7 {[%clk 0:02:58]} 9. c3 {[%clk 0:02:46.4]} 9... Be7 {[%clk
0:02:50.3]} 10. Qd2 {[%clk 0:02:29.6]} 10... Rc8 {[%clk 0:02:43.9]} 11. f3
{[%clk 0:02:29.6]} 11... Bf5 {[%clk 0:02:44.6]} 12. Nxf5 {[%clk 0:02:29.4]}
12... exf5 {[%clk 0:02:46.4]} 13. Nh3 {[%clk 0:02:29.2]} 13... Nd5 {[%clk
0:02:17.3]} 14. O-O-O {[%clk 0:02:20.2]} 14... N7f6 {[%clk 0:02:03.3]} 15. Bd3
{[%clk 0:02:09]} 15... g6 {[%clk 0:02:02]} 16. Rhe1 {[%clk 0:02:09.4]} 16... O-O
{[%clk 0:02:00.7]} 17. Nf4 {[%clk 0:01:58]} 17... Nxf4 {[%clk 0:01:59.4]} 18.
Bxf4 {[%clk 0:01:45.9]} 18... Nd5 {[%clk 0:01:58.2]} 19. Bh6 {[%clk 0:01:41]}
19... Re8 {[%clk 0:01:56.9]} 20. g3 {[%clk 0:01:36.7]} 20... Bf8 {[%clk
0:01:54.1]} 21. Bxf8 {[%clk 0:01:28.2]} 21... Rxe1 {[%clk 0:01:51.3]} 22. Rxe1
{[%clk 0:01:27.6]} 22... Qxf8 {[%clk 0:01:52.2]} 23. g4 {[%clk 0:01:06.4]} 23...
fxg4 {[%clk 0:01:51.1]} 24. fxg4 {[%clk 0:01:08.3]} 24... hxg4 {[%clk
0:01:49.5]} 25. h5 {[%clk 0:01:09.2]} 25... Re8 {[%clk 0:01:31.2]} 26. hxg6
{[%clk 0:00:44.2]} 26... Rxe1+ {[%clk 0:01:29.9]} 27. Qxe1 {[%clk 0:00:46.1]}
27... Qh6+ {[%clk 0:01:27.5]} 28. Kc2 {[%clk 0:00:41.2]} 28... fxg6 {[%clk
0:01:25.5]} 29. Qe6+ {[%clk 0:00:40.9]} 29... Kh7 {[%clk 0:01:23.7]} 30. Kb3
{[%clk 0:00:32.1]} 30... Qg5 {[%clk 0:01:22.8]} 31. Qf7+ {[%clk 0:00:26.7]}
31... Kh6 {[%clk 0:01:21.9]} 32. Qf8+ {[%clk 0:00:17.8]} 32... Kh5 {[%clk
0:01:14.4]} 33. Qh8+ {[%clk 0:00:19]} 33... Qh6 {[%clk 0:01:15.3]} 34. Qe5+
{[%clk 0:00:20.9]} 34... Qg5 {[%clk 0:01:15.5]} 35. Qh8+ {[%clk 0:00:21.4]}
35... Qh6 {[%clk 0:01:14.2]} 36. Qe5+ {[%clk 0:00:19.6]} 36... Kh4 {[%clk
0:01:14.2]} 37. Qh2+ {[%clk 0:00:18.7]} 37... Kg5 {[%clk 0:01:15.4]} 38. Qe5+
{[%clk 0:00:19.4]} 38... Kh4 {[%clk 0:00:47.7]} 39. Qh2+ {[%clk 0:00:19]} 39...
Kg5 {[%clk 0:00:48.6]} 40. Qe5+ {[%clk 0:00:13.1]} 40... Kh4 {[%clk 0:00:49.8]}
1/2-1/2

[Event "*** Titled Tuesday Blitz"]
[Site "Chess.com"]
[Date "2020.02.04"]
[Round "8"]
[White "cancrushyou"]
[Black "Sjakkerntobi"]
[Result "1-0"]
[WhiteElo "2481"]
[BlackElo "2273"]
[TimeControl "180+2"]
[EndTime "10:57:01 PST"]
[Termination "cancrushyou won by checkmate"]

1. d4 {[%clk 0:03:01.9]} 1... Nf6 {[%clk 0:02:58.3]} 2. c4 {[%clk 0:03:03.4]}
2... e6 {[%clk 0:02:58.3]} 3. g3 {[%clk 0:03:04.7]} 3... Bb4+ {[%clk 0:02:57.7]}
4. Bd2 {[%clk 0:03:05.2]} 4... Qe7 {[%clk 0:02:58.1]} 5. Bg2 {[%clk 0:03:05.6]}
5... O-O {[%clk 0:02:58.7]} 6. e3 {[%clk 0:03:07.1]} 6... Bxd2+ {[%clk
0:02:59.8]} 7. Nxd2 {[%clk 0:03:06.9]} 7... d6 {[%clk 0:03:01.7]} 8. Ne2 {[%clk
0:03:08]} 8... e5 {[%clk 0:02:58.7]} 9. O-O {[%clk 0:03:08.5]} 9... Nc6 {[%clk
0:02:54.2]} 10. d5 {[%clk 0:03:00.9]} 10... Nb8 {[%clk 0:02:41.7]} 11. Nc3
{[%clk 0:03:01.9]} 11... a5 {[%clk 0:02:37.2]} 12. a3 {[%clk 0:03:02]} 12... Na6
{[%clk 0:02:33.9]} 13. b4 {[%clk 0:03:03.1]} 13... Bg4 {[%clk 0:02:32.7]} 14. f3
{[%clk 0:03:01.2]} 14... Bd7 {[%clk 0:02:33.4]} 15. Qb3 {[%clk 0:02:54.3]} 15...
Ne8 {[%clk 0:02:28.1]} 16. e4 {[%clk 0:02:49.5]} 16... g6 {[%clk 0:02:24.1]} 17.
Rab1 {[%clk 0:02:45.9]} 17... Ng7 {[%clk 0:02:21.3]} 18. Qc2 {[%clk 0:02:40.7]}
18... f5 {[%clk 0:02:20.6]} 19. f4 {[%clk 0:02:33.5]} 19... fxe4 {[%clk
0:02:21.1]} 20. Ndxe4 {[%clk 0:02:30.1]} 20... exf4 {[%clk 0:02:17.2]} 21. gxf4
{[%clk 0:02:24.4]} 21... Bf5 {[%clk 0:02:10.3]} 22. Qb2 {[%clk 0:01:59.4]} 22...
axb4 {[%clk 0:01:54.9]} 23. axb4 {[%clk 0:02:01.3]} 23... Qh4 {[%clk 0:01:56.2]}
24. Rbe1 {[%clk 0:01:55.5]} 24... Rae8 {[%clk 0:01:49.8]} 25. Ng3 {[%clk
0:01:43.5]} 25... Bd3 {[%clk 0:01:42.3]} 26. Rxe8 {[%clk 0:01:35.5]} 26... Rxe8
{[%clk 0:01:44.2]} 27. Rf3 {[%clk 0:01:36.1]} 27... Bxc4 {[%clk 0:01:41.8]} 28.
Qd2 {[%clk 0:01:29.8]} 28... Nh5 {[%clk 0:01:27.4]} 29. Nce4 {[%clk 0:01:29.9]}
29... Nxg3 {[%clk 0:01:09.8]} 30. hxg3 {[%clk 0:01:28.8]} 30... Qd8 {[%clk
0:00:54]} 31. Qd4 {[%clk 0:01:28.4]} 31... b5 {[%clk 0:00:37.6]} 32. Nf6+ {[%clk
0:01:26.2]} 32... Kf7 {[%clk 0:00:38.9]} 33. Nxe8 {[%clk 0:01:26.7]} 33... Qxe8
{[%clk 0:00:40.8]} 34. Re3 {[%clk 0:01:27.3]} 34... Qd7 {[%clk 0:00:40]} 35. Qh8
{[%clk 0:01:23.9]} 35... Nc5 {[%clk 0:00:14]} 36. Qxh7+ {[%clk 0:01:19]} 36...
Kf6 {[%clk 0:00:14.2]} 37. Qh4+ {[%clk 0:01:13.2]} 37... Kg7 {[%clk 0:00:14.3]}
38. Re7+ {[%clk 0:01:13.1]} 38... Qxe7 {[%clk 0:00:14.7]} 39. Qxe7+ {[%clk
0:01:15]} 39... Kh6 {[%clk 0:00:16.6]} 40. g4 {[%clk 0:01:13.7]} 40... Bd3
{[%clk 0:00:13.2]} 41. g5+ {[%clk 0:01:13]} 41... Kh5 {[%clk 0:00:14.5]} 42.
Bf3+ {[%clk 0:01:13.8]} 42... Kh4 {[%clk 0:00:15.7]} 43. Kg2 {[%clk 0:01:10.3]}
43... Bf1+ {[%clk 0:00:14.9]} 44. Kxf1 {[%clk 0:01:08.3]} 44... Kg3 {[%clk
0:00:16.8]} 45. bxc5 {[%clk 0:01:02.5]} 45... dxc5 {[%clk 0:00:17.4]} 46. Qxc7
{[%clk 0:01:02.8]} 46... c4 {[%clk 0:00:18.4]} 47. d6 {[%clk 0:01:03.7]} 47...
b4 {[%clk 0:00:15.7]} 48. d7 {[%clk 0:01:05]} 48... c3 {[%clk 0:00:17.6]} 49.
d8=Q {[%clk 0:01:06.2]} 49... c2 {[%clk 0:00:19.5]} 50. f5+ {[%clk 0:01:07.3]}
50... Kxf3 {[%clk 0:00:18.3]} 51. Qd3+ {[%clk 0:01:08.7]} 51... Kg4 {[%clk
0:00:19.2]} 52. Qcg3+ {[%clk 0:01:09.8]} 52... Kh5 {[%clk 0:00:20.3]} 53. Qdf3#
{[%clk 0:01:10.1]} 1-0

[Event "*** Titled Tuesday Blitz"]
[Site "Chess.com"]
[Date "2020.02.04"]
[Round "8"]
[White "inegrepus"]
[Black "saraswathii"]
[Result "1-0"]
[WhiteElo "2252"]
[BlackElo "2157"]
[TimeControl "180+2"]
[EndTime "10:57:08 PST"]
[Termination "inegrepus won by resignation"]

1. d4 {[%clk 0:03:01.9]} 1... Nf6 {[%clk 0:02:59.7]} 2. c4 {[%clk 0:03:02.6]}
2... d5 {[%clk 0:02:59.7]} 3. cxd5 {[%clk 0:03:02.8]} 3... Qxd5 {[%clk
0:02:59.4]} 4. Nc3 {[%clk 0:03:02.3]} 4... Qa5 {[%clk 0:02:57.4]} 5. Bd2 {[%clk
0:03:01.5]} 5... Bg4 {[%clk 0:02:52.9]} 6. h3 {[%clk 0:03:01.4]} 6... Bh5 {[%clk
0:02:53.5]} 7. g4 {[%clk 0:02:59.1]} 7... Bg6 {[%clk 0:02:52.2]} 8. Bg2 {[%clk
0:03:00.2]} 8... c6 {[%clk 0:02:50.7]} 9. Nf3 {[%clk 0:02:59]} 9... Nbd7 {[%clk
0:02:50.4]} 10. Nh4 {[%clk 0:02:52]} 10... O-O-O {[%clk 0:02:46.7]} 11. d5
{[%clk 0:02:30.3]} 11... c5 {[%clk 0:02:35.2]} 12. a4 {[%clk 0:02:21.6]} 12...
a6 {[%clk 0:02:14]} 13. b4 {[%clk 0:02:11.5]} 13... cxb4 {[%clk 0:02:11.2]} 14.
Na2 {[%clk 0:01:59.5]} 14... Nxd5 {[%clk 0:02:02.6]} 15. Rc1+ {[%clk 0:01:33.9]}
15... Nc5 {[%clk 0:01:32.5]} 16. Nxg6 {[%clk 0:01:16.7]} 16... hxg6 {[%clk
0:01:30.9]} 17. Qc2 {[%clk 0:01:12.3]} 17... e6 {[%clk 0:01:21.1]} 18. e4 {[%clk
0:00:56.2]} 18... Nc3 {[%clk 0:01:15.9]} 19. Nxc3 {[%clk 0:00:49.9]} 19... Nd3+
{[%clk 0:00:52.4]} 20. Kf1 {[%clk 0:00:43]} 20... bxc3 {[%clk 0:00:34.7]} 21.
Bxc3 {[%clk 0:00:40.7]} 21... Qc7 {[%clk 0:00:31.6]} 22. Ba5 {[%clk 0:00:20.8]}
22... Qxc2 {[%clk 0:00:23.7]} 23. Rxc2+ {[%clk 0:00:22.7]} 23... Nc5 {[%clk
0:00:23.1]} 24. Bxd8 {[%clk 0:00:21.7]} 24... Kxd8 {[%clk 0:00:25]} 25. e5
{[%clk 0:00:21.7]} 25... Be7 {[%clk 0:00:24]} 26. Ke2 {[%clk 0:00:22.7]} 26...
b6 {[%clk 0:00:24.6]} 27. Rd1+ {[%clk 0:00:24.2]} 27... Kc7 {[%clk 0:00:25.7]}
28. a5 {[%clk 0:00:24.4]} 28... bxa5 {[%clk 0:00:23.7]} 29. Rdc1 {[%clk
0:00:25.6]} 29... Kb6 {[%clk 0:00:24.1]} 30. Rb1+ {[%clk 0:00:26.6]} 30... Ka7
{[%clk 0:00:24.7]} 31. Rxc5 {[%clk 0:00:25.2]} 31... Bxc5 {[%clk 0:00:24.8]} 32.
Rb7+ {[%clk 0:00:26.6]} 32... Ka8 {[%clk 0:00:25.9]} 33. Rc7+ {[%clk 0:00:24.2]}
33... Kb8 {[%clk 0:00:25.9]} 34. Rxc5 {[%clk 0:00:25.2]} 34... Rc8 {[%clk
0:00:21.9]} 35. Rxc8+ {[%clk 0:00:21.8]} 35... Kxc8 {[%clk 0:00:21.7]} 36. Kd3
{[%clk 0:00:23.2]} 36... Kc7 {[%clk 0:00:21.6]} 37. Kc4 {[%clk 0:00:24.6]} 37...
Kb6 {[%clk 0:00:22.4]} 38. f4 {[%clk 0:00:24.2]} 38... a4 {[%clk 0:00:22.4]} 39.
Be4 {[%clk 0:00:22.6]} 39... a3 {[%clk 0:00:17.8]} 40. Bb1 {[%clk 0:00:23.4]}
40... Ka5 {[%clk 0:00:18.4]} 41. Ba2 {[%clk 0:00:24]} 41... Ka4 {[%clk
0:00:19.1]} 42. h4 {[%clk 0:00:23.9]} 1-0